Workbook

Sheet البيانات الاساسية
D6: يرجى وضع جميع ملفات نماذج تقويم أداء أعضاء هيئة التدريس بالبرنامج في مجلد واحد مع هذا الملف.
D7: يتم فتح ملف احصائية تقويم أعضاء هيئة التدريس على مستوى البرنامج.
D8: القيام بالضغط على زر "تجميع النتائج".
A10: الكلية: | B10: كلية علوم الحاسب و تقنية المعلومات | H10: البرنامج: | I10: علوم الحاسب
A12: م | B12: الاسم | C12: الجنس | D12: الدرجة العلمية | E12: العمل الإداري | F12: العام الجامعي | G12: اقسام التقييم | M12: اجمالي النقاط المستحقة | N12: المستوى العام
G13: الأداء التدريسي وفاعليته | H13: المشاركة في تطوير المقررات و البرنامج و تنفيذ نماذج الجودة | I13: الصفات الشخصية و المهارات | J13: الأنشطة البحثية و التنمية المهنية | K13: المشاركة في اللجان والأعمال الإدارية المختلفة | L13: خدمة الجامعة والمجتمع
A14: 1 | B14: عضو هيئة تدريس رقم 1 | C14: ذكر | D14: أساذ | E14: لا يوجد | F14: 1437 - 1438 | G14: 1.1875 | H14: 1.75 | I14: 1.296875 | J14: 1.75 | K14: 1 | L14: 1 | M14: 1.36328125 | N14: غير مرض
A15: 2 | B15: عضو هيئة تدريس رقم 10 | C15: أنثى | D15: أ. مساعد | E15: لا يوجد | F15: 1438 - 1439 | G15: 2.34375 | H15: 2.05 | I15: 2.625 | J15: 1.916666667 | K15: 1.6 | L15: 2.125 | M15: 2.166875 | N15: ضعيف
A16: 3 | B16: عضو هيئة تدريس رقم 11 | C16: ذكر | D16: أ. مساعد | E16: لا يوجد | F16: 1439 - 1440 | G16: 3.3125 | H16: 3.15 | I16: 3.375 | J16: 2.125 | K16: 4.2 | L16: 3.9375 | M16: 3.2625 | N16: جيد
A17: 4 | B17: عضو هيئة تدريس رقم 12 | C17: ذكر | D17: أ. مشارك | E17: لا يوجد | F17: 1439 - 1440 | G17: 3.8125 | H17: 4.5 | I17: 4.625 | J17: 3.458333333 | K17: 4.1 | L17: 3.6875 | M17: 4.035 | N17: جيد جداً
A18: 5 | B18: عضو هيئة تدريس رقم 13 | C18: ذكر | D18: أستاذ | E18: لا يوجد | F18: 1439 - 1440 | G18: 4.1875 | H18: 4.5 | I18: 4.265625 | J18: 4.125 | K18: 3.45 | L18: 4.625 | M18: 4.22234375 | N18: جيد جداً
A19: 6 | B19: عضو هيئة تدريس رقم 14 | C19: أنثى | D19: أ. مساعد | E19: لا يوجد | F19: 1439 - 1440 | G19: 4.375 | H19: 4.9 | I19: 4.640625 | J19: 4.541666667 | K19: 4 | L19: 4.375 | M19: 4.50734375 | N19: ممتاز
A20: 7 | B20: عضو هيئة تدريس رقم 15 | C20: أنثى | D20: أ. مساعد | E20: لا يوجد | F20: 1439 - 1440 | G20: 4.1875 | H20: 3.55 | I20: 4.03125 | J20: 3 | K20: 2.8 | L20: 3.125 | M20: 3.6134375 | N20: جيد جداً
A21: 8 | B21: عضو هيئة تدريس رقم 2 | C21: ذكر | D21: أ. مشارك | E21: لا يوجد | F21: 1437 - 1438 | G21: 1.34375 | H21: 1.525 | I21: 1.5625 | J21: 1.25 | K21: 1.1 | L21: 1 | M21: 1.34 | N21: غير مرض
A22: 9 | B22: عضو هيئة تدريس رقم 3 | C22: ذكر | D22: أ. مساعد | E22: لا يوجد | F22: 1437 - 1438 | G22: 1 | H22: 1.3 | I22: 1.421875 | J22: 1.75 | K22: 1.1 | L22: 1 | M22: 1.24578125 | N22: غير مرض
A23: 10 | B23: عضو هيئة تدريس رقم 4 | C23: أنثى | D23: أ. مساعد | E23: لا يوجد | F23: 1437 - 1438 | G23: 1.46875 | H23: 1.375 | I23: 1.140625 | J23: 1.5 | K23: 1.5 | L23: 1.1875 | M23: 1.38046875 | N23: غير مرض
A24: 11 | B24: عضو هيئة تدريس رقم 5 | C24: أنثى | D24: معيد | E24: لا يوجد | F24: 1437 - 1438 | G24: 1.609375 | H24: 1.175 | I24: 1.34375 | J24: 1.583333333 | K24: 1.4 | L24: 1.25 | M24: 1.421875 | N24: غير مرض
A25: 12 | B25: عضو هيئة تدريس رقم 6 | C25: ذكر | D25: أساذ | E25: لا يوجد | F25: 1438 - 1439 | G25: 2.625 | H25: 2.3 | I25: 2.5 | J25: 2.75 | K25: 2.7 | L25: 2 | M25: 2.505 | N25: جيد
A26: 13 | B26: عضو هيئة تدريس رقم 7 | C26: ذكر | D26: أ. مساعد | E26: لا يوجد | F26: 1438 - 1439 | G26: 2 | H26: 1.8 | I26: 1.8125 | J26: 1.875 | K26: 2 | L26: 1.5 | M26: 1.863125 | N26: ضعيف
A27: 14 | B27: عضو هيئة تدريس رقم 8 | C27: ذكر | D27: أ. مشارك | E27: لا يوجد | F27: 1438 - 1439 | G27: 2.5 | H27: 2.45 | I27: 2.65625 | J27: 2.75 | K27: 2.6 | L27: 2 | M27: 2.5109375 | N27: جيد
A28: 15 | B28: عضو هيئة تدريس رقم 9 | C28: أنثى | D28: أ. مشارك | E28: لا يوجد | F28: 1438 - 1439 | G28: 3 | H28: 2.275 | I28: 2.75 | J28: 2.875 | K28: 2.6 | L28: 1.25 | M28: 2.58375 | N28: جيد

Sheet 1438-1439
A5: رجاءاً أضغط هنا لتحليل النتائج للعام الجامعي 1438 - 1439 هـ
A8: الكلية: | B8: ='البيانات الاساسية'!B10 -> كلية علوم الحاسب و تقنية المعلومات | H8: البرنامج: | I8: ='البيانات الاساسية'!I10 -> علوم الحاسب
A11: تحليل النتائج | G11: اقسام التقييم | M11: النقاط المستحقة | N11: المستوى العام
G12: الأداء التدريسي وفاعليته | H12: المشاركة في تطوير المقررات و البرنامج و تنفيذ نماذج الجودة | I12: الصفات الشخصية و المهارات | J12: الأنشطة البحثية و التنمية المهنية | K12: المشاركة في اللجان والأعمال الإدارية المختلفة | L12: خدمة الجامعة والمجتمع
A13: أقل درجة تقييم: | F13: ذكر | G13: 2 | H13: 1.8 | I13: 1.8125 | J13: 1.875 | K13: 2 | L13: 1.5
F14: أنثى | G14: 2.34375 | H14: 2.05 | I14: 2.625 | J14: 1.916666667 | K14: 1.6 | L14: 1.25
F15: مجمع | G15: =MIN(G13,G14) -> 2 | H15: =MIN(H13,H14) -> 1.8 | I15: 1.8125 | J15: 1.875 | K15: 1.6 | L15: 1.25
A16: أعلى درجة تقييم: | F16: ذكر | G16: 2.625 | H16: 2.45 | I16: 2.65625 | J16: 2.75 | K16: 2.7 | L16: 2
F17: أنثى | G17: 3 | H17: 2.275 | I17: 2.75 | J17: 2.875 | K17: 2.6 | L17: 2.125
F18: مجمع | G18: =MAX(G16,G17) -> 3 | H18: =MAX(H16,H17) -> 2.45 | I18: 2.75 | J18: 2.875 | K18: 2.7 | L18: 2.125
A19: متوسط الدرجات على مستوى البرنامج: | F19: ذكر | G19: 2.375 | H19: 2.183333333 | I19: 2.322916667 | J19: 2.458333333 | K19: 2.433333333 | L19: 1.833333333 | M19: =IF(AND(G19="", H19="", I19="", J19="", K19="", L19=""),"",(G19*0.3 + H19*0.2 + I19*0.15 + J19*0.15 + K19*0.1 + L19*0.1)) -> 2.293020833 | N19: =IF(M19="","",IF(M19>=4.5,"ممتاز",IF(M19>=3.5,"جيد جداً",IF(M19>=2.5,"جيد",IF(M19>=1.5,"ضعيف","غير مرض"))))) -> ضعيف
F20: أنثى | G20: 2.671875 | H20: 2.1625 | I20: 2.6875 | J20: 2.395833333 | K20: 2.1 | L20: 1.6875 | M20: =IF(AND(G20="", H20="", I20="", J20="", K20="", L20=""),"",(G20*0.3 + H20*0.2 + I20*0.15 + J20*0.15 + K20*0.1 + L20*0.1)) -> 2.3753125 | N20: =IF(M20="","",IF(M20>=4.5,"ممتاز",IF(M20>=3.5,"جيد جداً",IF(M20>=2.5,"جيد",IF(M20>=1.5,"ضعيف","غير مرض"))))) -> ضعيف
F21: مجمع | G21: =AVERAGE(G19,G20) -> 2.5234375 | H21: =AVERAGE(H19,H20) -> 2.172916667 | I21: 2.505208333 | J21: 2.427083333 | K21: 2.266666667 | L21: 1.760416667 | M21: =IF(AND(G21="", H21="", I21="", J21="", K21="", L21=""),"",(G21*0.3 + H21*0.2 + I21*0.15 + J21*0.15 + K21*0.1 + L21*0.1)) -> 2.334166667 | N21: ضعيف

Sheet 1439-1440
A5: رجاءاً أضغط هنا لتحليل النتائج للعام الجامعي 1439 - 1440 هـ
A8: الكلية: | B8: ='البيانات الاساسية'!B10 -> كلية علوم الحاسب و تقنية المعلومات | H8: البرنامج: | I8: ='البيانات الاساسية'!I10 -> علوم الحاسب
A11: تحليل النتائج | G11: اقسام التقييم | M11: النقاط المستحقة | N11: المستوى العام
G12: الأداء التدريسي وفاعليته | H12: المشاركة في تطوير المقررات و البرنامج و تنفيذ نماذج الجودة | I12: الصفات الشخصية و المهارات | J12: الأنشطة البحثية و التنمية المهنية | K12: المشاركة في اللجان والأعمال الإدارية المختلفة | L12: خدمة الجامعة والمجتمع
A13: أقل درجة تقييم: | F13: ذكر | G13: 3.3125 | H13: 3.15 | I13: 3.375 | J13: 2.125 | K13: 3.45 | L13: 3.6875
F14: أنثى | G14: 4.1875 | H14: 3.55 | I14: 4.03125 | J14: 3 | K14: 2.8 | L14: 3.125
F15: مجمع | G15: =MIN(G13,G14) -> 3.3125 | H15: =MIN(H13,H14) -> 3.15 | I15: 3.375 | J15: 2.125 | K15: 2.8 | L15: 3.125
A16: أعلى درجة تقييم: | F16: ذكر | G16: 4.1875 | H16: 4.5 | I16: 4.625 | J16: 4.125 | K16: 4.2 | L16: 4.625
F17: أنثى | G17: 4.375 | H17: 4.9 | I17: 4.640625 | J17: 4.541666667 | K17: 4 | L17: 4.375
F18: مجمع | G18: =MAX(G16,G17) -> 4.375 | H18: =MAX(H16,H17) -> 4.9 | I18: 4.640625 | J18: 4.541666667 | K18: 4.2 | L18: 4.625
A19: متوسط الدرجات على مستوى البرنامج: | F19: ذكر | G19: 3.770833333 | H19: 4.05 | I19: 4.088541667 | J19: 3.236111111 | K19: 3.916666667 | L19: 4.083333333 | M19: =IF(AND(G19="", H19="", I19="", J19="", K19="", L19=""),"",(G19*0.3 + H19*0.2 + I19*0.15 + J19*0.15 + K19*0.1 + L19*0.1)) -> 3.839947917 | N19: =IF(M19="","",IF(M19>=4.5,"ممتاز",IF(M19>=3.5,"جيد جداً",IF(M19>=2.5,"جيد",IF(M19>=1.5,"ضعيف","غير مرض"))))) -> جيد جداً
F20: أنثى | G20: 4.28125 | H20: 4.225 | I20: 4.3359375 | J20: 3.770833333 | K20: 3.4 | L20: 3.75 | M20: =IF(AND(G20="", H20="", I20="", J20="", K20="", L20=""),"",(G20*0.3 + H20*0.2 + I20*0.15 + J20*0.15 + K20*0.1 + L20*0.1)) -> 4.060390625 | N20: =IF(M20="","",IF(M20>=4.5,"ممتاز",IF(M20>=3.5,"جيد جداً",IF(M20>=2.5,"جيد",IF(M20>=1.5,"ضعيف","غير مرض"))))) -> جيد جداً
F21: مجمع | G21: =AVERAGE(G19,G20) -> 4.026041667 | H21: =AVERAGE(H19,H20) -> 4.1375 | I21: 4.212239583 | J21: 3.503472222 | K21: 3.658333333 | L21: 3.916666667 | M21: 3.950169271 | N21: جيد جداً

Sheet 1440-1441
A5: رجاءاً أضغط هنا لتحليل النتائج للعام الجامعي 1440 - 1441 هـ
A8: الكلية: | B8: ='البيانات الاساسية'!B10 -> كلية علوم الحاسب و تقنية المعلومات | H8: البرنامج: | I8: ='البيانات الاساسية'!I10 -> علوم الحاسب
A11: تحليل النتائج | G11: اقسام التقييم | M11: النقاط المستحقة | N11: المستوى العام
G12: الأداء التدريسي وفاعليته | H12: المشاركة في تطوير المقررات و البرنامج و تنفيذ نماذج الجودة | I12: الصفات الشخصية و المهارات | J12: الأنشطة البحثية و التنمية المهنية | K12: المشاركة في اللجان والأعمال الإدارية المختلفة | L12: خدمة الجامعة والمجتمع
A13: أقل درجة تقييم: | F13: ذكر | G13: 1 | H13: 1.3 | I13: 1.296875 | J13: 1.25 | K13: 1 | L13: 1
F14: أنثى | G14: 1.46875 | H14: 1.175 | I14: 1.140625 | J14: 1.5 | K14: 1.4 | L14: 1.1875
F15: مجمع | G15: =MIN(G13,G14) -> 1 | H15: =MIN(H13,H14) -> 1.175 | I15: 1.140625 | J15: 1.25 | K15: 1 | L15: 1
A16: أعلى درجة تقييم: | F16: ذكر | G16: 1.34375 | H16: 1.75 | I16: 1.5625 | J16: 1.75 | K16: 1.1 | L16: 1
F17: أنثى | G17: 1.609375 | H17: 1.375 | I17: 1.34375 | J17: 1.583333333 | K17: 1.5 | L17: 1.25
F18: مجمع | G18: =MAX(G16,G17) -> 1.609375 | H18: =MAX(H16,H17) -> 1.75 | I18: 1.5625 | J18: 1.75 | K18: 1.5 | L18: 1.25
A19: متوسط الدرجات على مستوى البرنامج: | F19: ذكر | G19: 1.177083333 | H19: 1.525 | I19: 1.427083333 | J19: 1.583333333 | K19: 1.066666667 | L19: 1 | M19: =IF(AND(G19="", H19="", I19="", J19="", K19="", L19=""),"",(G19*0.3 + H19*0.2 + I19*0.15 + J19*0.15 + K19*0.1 + L19*0.1)) -> 1.316354167 | N19: =IF(M19="","",IF(M19>=4.5,"ممتاز",IF(M19>=3.5,"جيد جداً",IF(M19>=2.5,"جيد",IF(M19>=1.5,"ضعيف","غير مرض"))))) -> غير مرض
F20: أنثى | G20: 1.5390625 | H20: 1.275 | I20: 1.2421875 | J20: 1.541666667 | K20: 1.45 | L20: 1.21875 | M20: =IF(AND(G20="", H20="", I20="", J20="", K20="", L20=""),"",(G20*0.3 + H20*0.2 + I20*0.15 + J20*0.15 + K20*0.1 + L20*0.1)) -> 1.401171875 | N20: =IF(M20="","",IF(M20>=4.5,"ممتاز",IF(M20>=3.5,"جيد جداً",IF(M20>=2.5,"جيد",IF(M20>=1.5,"ضعيف","غير مرض"))))) -> غير مرض
F21: مجمع | G21: =AVERAGE(G19,G20) -> 1.358072917 | H21: =AVERAGE(H19,H20) -> 1.4 | I21: 1.334635417 | J21: 1.5625 | K21: 1.258333333 | L21: 1.109375 | M21: 1.358763021 | N21: غير مرض

Sheet كل الاعوام
B5: تحليل النتائج | E5: الاعوام الجامعية
E6: 1438 - 1439 | H6: 1439 - 1440 | K6: 1440 - 1441
E7: ذكر | F7: أنثى | G7: مجمع | H7: ذكر | I7: أنثى | J7: مجمع | K7: ذكر | L7: أنثى | M7: مجمع
B8: النقاط المستحقة | E8: ='1438-1439'!$M$19 -> 2.293020833 | F8: ='1438-1439'!$M$20 -> 2.3753125 | G8: ='1438-1439'!$M$21 -> 2.334166667 | H8: ='1439-1440'!$M$19 -> 3.839947917 | I8: ='1439-1440'!$M$20 -> 4.060390625 | J8: ='1439-1440'!$M$21 -> 3.950169271 | K8: ='1440-1441'!$M$19 -> 1.316354167 | L8: ='1440-1441'!$M$20 -> 1.401171875 | M8: ='1440-1441'!$M$21 -> 1.358763021
B9: المستوى العام | E9: ='1438-1439'!$N$19 -> ضعيف | F9: ='1438-1439'!$N$20 -> ضعيف | G9: ='1438-1439'!$N$21 -> ضعيف | H9: ='1439-1440'!$N$19 -> جيد جداً | I9: ='1439-1440'!$N$20 -> جيد جداً | J9: ='1439-1440'!$N$21 -> جيد جداً | K9: ='1440-1441'!$N$19 -> غير مرض | L9: ='1440-1441'!$N$20 -> غير مرض | M9: ='1440-1441'!$N$21 -> غير مرض
